lending/lending_fUSD_20260310
["ID","MTS","AMOUNT","RATE_DAILY","PERIOD"]
[408083280,1773121832352,-1434.7246023,0.00019351,2]
[408083281,1773121832362,-250.0,0.00019351,2]
[408083282,1773121832372,-328.05894349,0.00019351,2]
[408083283,1773121832384,-122.4353025,0.00019351,2]
[408083284,1773121832393,-1500.0,0.00019351,2]
[408083285,1773121832403,-256.39759143,0.00019351,2]
[408083286,1773121832412,-1039.07534199,0.00019351,2]
[408083287,1773121832422,-3000.0,0.00019351,2]
[408083288,1773121832431,-2815.01663856,0.00019351,2]
[408083289,1773121837657,-184.98336144,0.00019351,2]
[408083290,1773121837667,-3000.0,0.00019351,2]
[408083291,1773121837679,-200.0,0.00019351,2]
[408083292,1773121837688,-4838.77113528,0.00019352,2]
[408083293,1773121837698,-500.0,0.00019362,2]
[408083294,1773121837707,-500.0,0.00019362,2]
[408083295,1773121837717,-500.0,0.00019362,2]
[408083296,1773121837728,-25248.74550326,0.00019363,2]
[408083316,1773121843092,-920.55654936,0.00019363,2]
[408083317,1773121843150,-69959.99999999,0.00019363,2]
[408083321,1773121845728,-30966.89431158,0.00019363,2]
[408083322,1773121845783,-618.00996464,0.00019363,2]
[408083333,1773122168225,1167.74954996,0.00011,2]
[408083337,1773122246089,500.0,9.157e-05,2]
[408083339,1773122338983,4701.91,0.0002,120]
[408083340,1773122366705,1032.81610295,0.000108,2]
[408083343,1773122538887,1080.3324976,0.00014157,2]
[408083344,1773122538922,10000.01,0.00014157,2]
[408083345,1773122549835,504.05951318,9.157e-05,2]
[408083346,1773122673751,590.59772959,0.00014157,2]
[408083347,1773122686178,344.52,8.625e-05,2]
[408083348,1773122686386,344.52,9.079e-05,2]
[408083349,1773122686826,344.52,9.533e-05,2]
[408083350,1773122687261,344.52,9.987e-05,2]
[408083351,1773122687482,344.52,0.00010441,2]
[408083352,1773122687670,344.52,0.00010895,2]
[408083353,1773122687875,344.52,0.00011349,2]
[408083354,1773122688083,344.52,0.00011803,2]
[408083355,1773122688285,344.52,0.00012257,2]
[408083356,1773122688485,344.52,0.0001271,2]
[408083357,1773122688688,344.52,0.00013164,2]
[408083358,1773122688888,344.52,0.00013618,2]
[408083359,1773122689072,344.52,0.00014072,2]
[408083360,1773122816966,539.96074853,0.00014157,2]
[408083361,1773122835821,492.55,0.00014157,2]
[408083362,1773122837099,500.0,9.157e-05,2]
[408083363,1773122837513,500.0,9.157e-05,2]
[408083364,1773122837674,800.0,9.157e-05,2]
[408083365,1773122838847,631.68936338,9.157e-05,2]
[408083366,1773122847150,500.0,9.157e-05,2]
[408083367,1773122847727,462.39264532,9.157e-05,2]
[408083368,1773122847750,37.60735468,9.157e-05,2]
[408083369,1773122848206,963.40000001,9.157e-05,2]
[408083370,1773122850507,500.0,9.157e-05,2]
[408083371,1773122850997,500.0,9.157e-05,2]
[408083372,1773122851549,500.0,9.157e-05,2]
[408083373,1773122852114,800.0,9.157e-05,2]
[408083395,1773123031735,-270.0,0.00014526,2]
[408083396,1773123031747,-344.52,0.00014526,2]
[408083397,1773123031760,-249.72543445,0.00014583,2]
[408083398,1773123031771,-17.62306211,0.0001464,2]
[408083399,1773123031791,-753.09618127,0.0001464,2]
[408083400,1773123031806,-1387.20657822,0.0001464,2]
[408083401,1773123031818,-789.06159669,0.0001464,2]
[408083404,1773123031833,-2053.01258171,0.0001464,2]
[408083406,1773123031843,-250.0,0.00014753,2]
[408083408,1773123031852,-5000.0,0.00014852,2]
[408083410,1773123031862,-3891.2281793,0.00014852,2]
[408083412,1773123031875,-344.52,0.0001498,2]
[408083414,1773123031885,-150.0,0.00014999,2]
[408083416,1773123031895,-1200.0,0.00014999,2]
[408083418,1773123031906,-500.0,0.00015,30]
[408083420,1773123031915,-500.0,0.00015,30]
[408083422,1773123031925,-500.0,0.00015,30]
[408083424,1773123031935,-500.0,0.00015,30]
[408083426,1773123031945,-500.0,0.00015,30]
[408083428,1773123031955,-500.0,0.00015,30]
[408083430,1773123031964,-500.0,0.00015,30]
[408083432,1773123031974,-500.0,0.00015,30]
[408083434,1773123031983,-500.0,0.00015,30]
[408083435,1773123031993,-500.0,0.00015,30]
[408083438,1773123032006,-602.44956,0.00015,30]
[408083440,1773123032016,-500.0,0.00015,30]
[408083442,1773123032025,-500.0,0.00015,30]
[408083444,1773123032035,-500.0,0.00015,30]
[408083446,1773123032045,-500.0,0.00015,30]
[408083447,1773123032055,-500.0,0.00015,30]
[408083448,1773123032065,-500.0,0.00015,30]
[408083449,1773123032075,-500.0,0.00015,30]
[408083450,1773123032084,-500.0,0.00015,30]
[408083451,1773123032095,-500.0,0.00015,30]
[408083452,1773123032105,-500.0,0.00015,30]
[408083453,1773123032114,-194.745553,0.00015094,7]
[408083454,1773123032123,-455.27809733,0.0001519,2]
[408083455,1773123032133,-344.52,0.00015434,2]
[408083456,1773123032142,-1000.0,0.00015495,2]
[408083457,1773123032152,-18210.84189558,0.00015496,2]
[408083458,1773123032161,-219.0,0.00015844,2]
[408083459,1773123032171,-1326.0,0.00015849,2]
[408083460,1773123032180,-205.27305216,0.00015865,2]
[408083461,1773123032190,-441.0,0.00015875,2]
[408083462,1773123032201,-344.52,0.00015888,2]
[408083463,1773123032210,-476.07802003,0.00015979,2]
[408083464,1773123032220,-600.0,0.00015979,2]
[408083465,1773123032229,-250.0,0.00015979,2]
[408083466,1773123032239,-5000.0,0.00015979,2]
[408083467,1773123032248,-500.0,0.00015979,2]
[408083468,1773123032258,-250.0,0.00015979,2]
[408083469,1773123032268,-5000.0,0.00015979,2]
[408083470,1773123032277,-300.0,0.00015979,2]
[408083471,1773123032287,-586.811411,0.00016198,7]
[408083472,1773123032297,-3781.4,0.00016289,2]
[408083473,1773123032307,-500.0,0.00016342,2]
[408083474,1773123032317,-344.52,0.00016342,2]
[408083475,1773123032327,-166.66,0.00016387,2]
[408083476,1773123032336,-500.0,0.0001649,2]
[408083477,1773123032346,-1680.0,0.00016499,2]
[408083478,1773123032355,-500.0,0.00016616,2]
[408083479,1773123032365,-13789.22678813,0.00016676,2]
[408083480,1773123032375,-166.66,0.00016732,2]
[408083481,1773123032384,-344.52,0.00016796,2]
[408083482,1773123032394,-500.0,0.0001689,2]
[408083483,1773123032403,-852.88863574,0.00016904,2]
[408083484,1773123032413,-504.0,0.00017,2]
[408083485,1773123032423,-3635.4675311,0.00017023,2]
[408083486,1773123032432,-3302.87,0.00017051,2]
[408083487,1773123032443,-166.66,0.00017077,2]
[408083488,1773123032453,-1554.65,0.00017079,2]
[408083489,1773123032462,-1418.13613387,0.00017244,2]
[408083490,1773123032472,-344.52,0.0001725,2]
[408083491,1773123032482,-1600.0,0.0001725,2]
[408083492,1773123032492,-889.15,0.0001725,2]
[408083493,1773123032501,-1500.0,0.0001725,2]
[408083494,1773123032511,-1976.6851578,0.00017408,2]
[408083495,1773123032522,-166.66,0.00017422,2]
[408083496,1773123032531,-150.0,0.00017448,2]
[408083497,1773123032540,-3302.87,0.00017477,2]
[408083498,1773123032549,-1000.0,0.00017678,2]
[408083499,1773123032558,-166.66,0.00017767,2]
[408083500,1773123032569,-157.92,0.00017767,2]
[408083501,1773123032589,-3302.87,0.00017903,2]
[408083502,1773123032600,-500.0,0.00017945,2]
[408083503,1773123032609,-13457.76362143,0.00018,5]
[408083504,1773123032619,-481.01471195,0.00018,2]
[408083505,1773123032629,-1197.75782958,0.00018,2]
[408083506,1773123032639,-1787.54805324,0.000181,2]
[408083507,1773123032649,-166.66,0.00018112,2]
[408083508,1773123032659,-2351.0,0.00018149,2]
[408083509,1773123032668,-3552.71969971,0.0001821,2]
[408083510,1773123032679,-5338.24646707,0.00018295,2]
[408083511,1773123032689,-500.0,0.00018327,7]
[408083512,1773123032700,-500.0,0.00018327,7]
[408083513,1773123032711,-600.0,0.00018327,7]
[408083514,1773123032721,-3302.87,0.0001833,2]
[408083515,1773123032731,-9728.39527393,0.00018395,2]
[408083516,1773123032743,-5000.0,0.00018395,2]
[408083517,1773123032755,-1093.66858165,0.00018395,2]
[408083518,1773123032770,-3906.33141835,0.00018395,2]
[408083519,1773123032780,-5338.24646707,0.0001847,2]
[408083520,1773123032790,-157.92,0.00018501,2]
[408083521,1773123032800,-2500.0,0.00018508,2]
[408083522,1773123032809,-153.8419252,0.00018519,2]
[408083523,1773123032819,-4149.54229862,0.00018519,2]
[408083524,1773123032828,-614.31,0.00018528,2]
[408083525,1773123032838,-58.80693824,0.00018552,2]
[408083526,1773123032850,-94.29242613,0.00018552,2]
[408083527,1773123032860,-151.0,0.00018575,2]
[408083528,1773123032874,-151.0,0.00018575,2]
[408083529,1773123032884,-168.43846,0.00018575,2]
[408083530,1773123032894,-168.43846,0.00018575,2]
[408083531,1773123032904,-168.43846,0.00018575,2]
[408083532,1773123032913,-168.43846,0.00018575,2]
[408083533,1773123032923,-153.534323,0.00018575,2]
[408083534,1773123032933,-2927.78,0.00018575,2]
[408083535,1773123032944,-485.33,0.00018598,3]
[408083536,1773123032954,-500.0,0.00018607,2]
[408083537,1773123032963,-500.0,0.00018607,2]
[408083538,1773123032974,-507.5170851,0.00018607,2]
[408083539,1773123032984,-514.49695934,0.00018607,2]
[408083540,1773123032994,-510.39088339,0.00018607,2]
[408083541,1773123033004,-500.0,0.00018607,2]
[408083542,1773123033014,-505.20544332,0.00018607,2]
[408083543,1773123033023,-517.45397001,0.00018607,2]
[408083544,1773123033033,-157.60729089,0.00018607,2]
[408083545,1773123033046,-352.08916569,0.00018607,2]
[408083546,1773123033056,-502.39753346,0.00018607,2]
[408083547,1773123033066,-151.0,0.00018607,2]
[408083548,1773123033076,-151.0,0.00018607,2]
[408083549,1773123033085,-151.0,0.00018607,2]
[408083550,1773123033095,-151.0,0.00018607,2]
[408083551,1773123033105,-250.0,0.00018607,2]
[408083552,1773123033115,-250.0,0.00018607,2]
[408083553,1773123033124,-250.0,0.00018607,2]
[408083554,1773123033134,-151.0,0.00018607,2]
[408083555,1773123033143,-250.0,0.00018607,2]
[408083556,1773123033153,-152.981753,0.00018607,2]
[408083557,1773123033162,-151.0,0.00018607,2]
[408083558,1773123033172,-500.0,0.00018607,2]
[408083559,1773123033182,-500.0,0.00018607,2]
[408083560,1773123033192,-500.0,0.00018607,2]
[408083561,1773123033202,-33.63506346,0.00018607,2]
[408083603,1773123038358,-466.36493654,0.00018607,2]
[408083605,1773123038368,-48.53639455,0.00018607,2]
[408083606,1773123038379,-451.46360545,0.00018607,2]
[408083607,1773123038391,-106.92025124,0.00018607,2]
[408083608,1773123038413,-393.07974876,0.00018607,2]
[408083609,1773123038423,-500.0,0.00018607,2]
[408083610,1773123038432,-500.0,0.00018607,2]
[408083611,1773123038442,-500.0,0.00018607,2]
[408083612,1773123038451,-462.84530924,0.00018607,2]
[408083613,1773123038461,-500.0,0.00018607,2]
[408083614,1773123038470,-500.0,0.00018607,2]
[408083615,1773123038479,-500.0,0.00018607,2]
[408083616,1773123038489,-500.0,0.00018607,2]
[408083617,1773123038498,-500.0,0.00018607,2]
[408083618,1773123038510,-500.0,0.00018607,2]
[408083619,1773123038523,-500.0,0.00018607,2]
[408083620,1773123038533,-500.0,0.00018607,2]
[408083621,1773123038542,-500.0,0.00018607,2]
[408083622,1773123038553,-500.0,0.00018607,2]
[408083623,1773123038563,-500.0,0.00018607,2]
[408083624,1773123038571,-500.0,0.00018607,2]
[408083625,1773123038582,-500.0,0.00018607,2]
[408083626,1773123038590,-500.0,0.00018607,2]
[408083627,1773123038599,-500.0,0.00018607,2]
[408083628,1773123038607,-500.0,0.00018607,2]
[408083629,1773123038616,-500.0,0.00018607,2]
[408083630,1773123038624,-500.0,0.00018607,2]
[408083631,1773123038635,-500.0,0.00018607,2]
[408083632,1773123038647,-500.0,0.00018607,2]
[408083633,1773123038659,-500.0,0.00018607,2]
[408083634,1773123038669,-500.0,0.00018607,2]
[408083635,1773123038680,-500.0,0.00018607,2]
[408083636,1773123038690,-500.0,0.00018607,2]
[408083637,1773123038701,-500.0,0.00018607,2]
[408083638,1773123038711,-500.0,0.00018607,2]
[408083639,1773123038721,-500.0,0.00018607,2]
[408083640,1773123038733,-500.0,0.00018607,2]
[408083641,1773123038743,-500.0,0.00018607,2]
[408083642,1773123038754,-500.0,0.00018607,2]
[408083643,1773123038763,-500.0,0.00018607,2]
[408083644,1773123038773,-500.0,0.00018607,2]
[408083645,1773123038783,-500.0,0.00018607,2]
[408083646,1773123038792,-500.0,0.00018607,2]
[408083647,1773123038803,-500.0,0.00018607,2]
[408083648,1773123038813,-500.0,0.00018607,2]
[408083649,1773123038824,-500.0,0.00018607,2]
[408083650,1773123038833,-500.0,0.00018607,2]
[408083651,1773123038843,-500.0,0.00018607,2]
[408083652,1773123038855,-500.0,0.00018607,2]
[408083653,1773123038867,-500.0,0.00018607,2]
[408083654,1773123038876,-500.0,0.00018607,2]
[408083655,1773123038884,-500.0,0.00018607,2]
[408083656,1773123038893,-500.0,0.00018607,2]
[408083657,1773123038902,-500.0,0.00018607,2]
[408083658,1773123038913,-500.0,0.00018607,2]
[408083659,1773123038921,-500.0,0.00018607,2]
[408083660,1773123038930,-500.0,0.00018607,2]
[408083661,1773123038941,-500.0,0.00018607,2]
[408083662,1773123038950,-500.0,0.00018607,2]
[408083663,1773123038959,-500.0,0.00018607,2]
[408083664,1773123038977,-500.0,0.00018607,2]
[408083665,1773123038987,-500.0,0.00018607,2]
[408083666,1773123038996,-151.0,0.00018608,2]
[408083667,1773123039005,-151.0,0.00018608,2]
[408083668,1773123039014,-151.0,0.00018608,2]
[408083669,1773123039024,-151.0,0.00018608,2]
[408083670,1773123039034,-426.940164,0.00018608,2]
[408083671,1773123039043,-426.940164,0.00018608,2]
[408083672,1773123039052,-426.940164,0.00018608,2]
[408083673,1773123039062,-426.940164,0.00018608,2]
[408083674,1773123039071,-151.677904,0.00018608,2]
[408083675,1773123039079,-151.0,0.00018608,2]
[408083676,1773123039088,-157.696963,0.00018608,2]
[408083677,1773123039098,-151.0,0.00018608,2]
[408083678,1773123039107,-151.0,0.00018608,2]
[408083679,1773123039116,-155.399781,0.00018608,2]
[408083680,1773123039128,-151.0,0.00018608,2]
[408083681,1773123039137,-254.277832,0.00018608,2]
[408083682,1773123039147,-168.43846,0.00018608,2]
[408083683,1773123039156,-168.43846,0.00018608,2]
[408083684,1773123039165,-168.43846,0.00018608,2]
[408083685,1773123039175,-168.43846,0.00018608,2]
[408083686,1773123039184,-151.0,0.00018608,2]
[408083687,1773123039193,-153.243969,0.00018608,2]
[408083688,1773123039202,-250.0,0.00018608,2]
[408083689,1773123039212,-250.0,0.00018608,2]
[408083690,1773123039222,-250.0,0.00018608,2]
[408083691,1773123039232,-151.0,0.00018608,2]
[408083692,1773123039241,-250.0,0.00018608,2]
[408083693,1773123039251,-202.463559,0.00018608,2]
[408083694,1773123039260,-350619.1723737,0.00018608,2]
[408083709,1773123043023,-779.54605746,0.00018608,2]
[408083710,1773123043035,-1897.46000004,0.00018608,2]
[408083711,1773123043047,-257.94527297,0.00018608,2]
[408083712,1773123043058,-887.1555738,0.00018608,2]
[408083726,1773123045782,-12360.90097572,0.00018608,2]
[408083871,1773123083313,221.5322076,0.00014157,2]
[408083872,1773123138201,908.74732828,9.157e-05,2]
[408083873,1773123141270,500.0,9.157e-05,2]
[408083874,1773123442177,500.0,9.157e-05,2]
[408083875,1773123725634,-150.0,0.00015,30]
[408083876,1773123936635,162.62,0.00013507,2]
[408083877,1773124055727,-270.0,0.0001451,2]
[408083878,1773124055753,-500.0,0.0001451,2]
[408083879,1773124055778,-1230.0,0.0001451,2]
[408083880,1773124113025,-287.53,0.0001451,2]
[408083881,1773124113054,-212.72571705,0.00014899,2]
[408083882,1773124113079,-403.0,0.00014999,2]
[408083883,1773124113104,-300.0,0.00014999,2]
[408083884,1773124113129,-500.0,0.00015,14]
[408083891,1773124231916,-300.0,0.00014999,2]
[408083892,1773124231927,-1006.0,0.00014999,2]
[408083893,1773124231940,-274.0,0.00014999,2]
[408083894,1773124231951,-300.0,0.00014999,2]
[408083895,1773124231963,-150.0,0.00014999,30]
[408083896,1773124231973,-350.0,0.00015,30]
[408083897,1773124231984,-500.0,0.00015,30]
[408083898,1773124231995,-500.0,0.00015,30]
[408083899,1773124232007,-675.54622457,0.00015,30]
[408083900,1773124232019,-500.0,0.00015,30]
[408083901,1773124232031,-799.32727009,0.00015,30]
[408083903,1773124232041,-250.0,0.00015961,2]
[408083904,1773124232050,-300.0,0.00015961,2]
[408083905,1773124232063,-4599.59927549,0.00016,2]
[408083906,1773124232076,-29494.11995804,0.00016,2]
[408083907,1773124232091,-44630.64416152,0.00016,2]
[408083908,1773124232102,-160.0,0.000162,7]
[408083909,1773124232113,-186.708836,0.00016361,7]
[408083910,1773124232127,-420.0,0.00016416,2]
[408083911,1773124232138,-2500.0,0.00016499,2]
[408083912,1773124232148,-2500.0,0.00016499,2]
[408083913,1773124232166,-2500.0,0.00016499,2]
[408083915,1773124232187,-2549.30110941,0.00016499,2]
[408083918,1773124232211,-600.0,0.00016499,2]
[408083922,1773124232230,-181.1759498,0.00016499,2]
[408083925,1773124232242,-201.618784,0.00016814,7]
[408083926,1773124232256,-500.0,0.00016822,2]
[408083927,1773124232266,-2000.0,0.00016863,2]
[408083928,1773124232279,-504.0,0.00017,2]
[408083929,1773124232289,-2238.01,0.0001703,2]
[408083930,1773124232299,-200.0,0.00017222,2]
[408083931,1773124232310,-150.0,0.0001725,2]
[408083932,1773124232321,-762.804509,0.00017411,7]
[408083933,1773124232334,-1000.0,0.00017534,2]
[408083934,1773124232345,-451.0,0.00017699,2]
[408083935,1773124232356,-9999.99,0.00017728,2]
[408083936,1773124232367,-17930.59,0.00017728,2]
[408083937,1773124232379,-158.97,0.00017735,2]
[408083938,1773124232392,-2000.0,0.00017807,2]
[408083939,1773124232403,-1000.0,0.00017808,2]
[408083940,1773124232413,-150.0,0.00017951,2]
[408083941,1773124232423,-568.84324671,0.00017966,2]
[408083942,1773124232435,-18.15675329,0.00017966,2]
[408083943,1773124232444,-373.6323433,0.00018082,2]
[408083944,1773124232782,-626.3676567,0.00018082,2]
[408083945,1773124232798,-210.0,0.00018325,2]
[408083946,1773124232808,-500.0,0.00018327,7]
[408083947,1773124232817,-700.0,0.00018327,7]
[408083948,1773124232827,-58.3823433,0.00018327,7]
[408083949,1773124232842,-441.6176567,0.00018327,7]
[408083950,1773124232854,-65.4863433,0.00018356,2]
[408083955,1773124237952,-6360.0,0.00018356,2]
[408083956,1773124237963,-3731.8588095,0.00018356,2]
[408083957,1773124238081,-127.8270521,0.00018356,2]
[408083979,1773124240424,-361.01643239,0.00018356,2]
[408083984,1773124243142,-511.72228918,0.00018356,2]
[408083994,1773124245807,-996.5479627,0.00016666,2]
[408083995,1773124245817,-209.117595,0.00018264,2]
[408083996,1773124245827,-835.92718288,0.00018356,2]
[408083997,1773124245839,-33619.63189065,0.00018356,2]
[408083998,1773124245848,-1000.0,0.00018356,2]
[408083999,1773124245858,-4620.72232478,0.00018408,2]
[408084000,1773124245868,-4553.41534914,0.00018408,2]
[408084001,1773124245878,-2050.77477291,0.0001843,2]
[408084002,1773124245889,-500.0,0.0001843,2]
[408084003,1773124245899,-210.0,0.00018493,5]
[408084004,1773124245910,-210.0,0.00018493,5]
[408084005,1773124245921,-210.0,0.00018493,5]
[408084006,1773124245930,-210.0,0.00018493,5]
[408084007,1773124245939,-210.0,0.00018493,5]
[408084008,1773124245949,-210.0,0.00018493,5]
[408084009,1773124245958,-210.0,0.00018493,5]
[408084010,1773124245968,-210.0,0.00018493,5]
[408084011,1773124245977,-210.0,0.00018493,5]
[408084012,1773124245987,-210.0,0.00018493,5]
[408084013,1773124245997,-210.0,0.00018493,5]
[408084014,1773124246006,-210.0,0.00018493,5]
[408084015,1773124246016,-210.0,0.00018493,5]
[408084016,1773124246026,-210.0,0.00018493,5]
[408084017,1773124246037,-210.0,0.00018493,5]
[408084018,1773124246048,-210.0,0.00018493,5]
[408084019,1773124246058,-210.0,0.00018493,5]
[408084020,1773124246068,-210.0,0.00018493,5]
[408084021,1773124246079,-210.0,0.00018493,5]
[408084022,1773124246089,-210.0,0.00018493,5]
[408084023,1773124246099,-210.0,0.00018493,5]
[408084024,1773124246108,-210.0,0.00018493,5]
[408084026,1773124246117,-210.0,0.00018493,5]
[408084028,1773124246127,-210.0,0.00018493,5]
[408084030,1773124246136,-210.0,0.00018493,5]
[408084032,1773124246145,-210.0,0.00018493,5]
[408084034,1773124246154,-210.0,0.00018493,5]
[408084036,1773124246163,-210.0,0.00018493,5]
[408084037,1773124246172,-210.0,0.00018493,5]
[408084038,1773124246182,-210.0,0.00018493,5]
[408084039,1773124246191,-210.0,0.00018493,5]
[408084040,1773124246202,-210.0,0.00018493,5]
[408084041,1773124246212,-210.0,0.00018493,5]
[408084042,1773124246222,-210.0,0.00018493,5]
[408084043,1773124246231,-210.0,0.00018493,5]
[408084044,1773124246242,-210.0,0.00018493,5]
[408084045,1773124246251,-210.0,0.00018493,5]
[408084046,1773124246260,-210.0,0.00018493,5]
[408084047,1773124246269,-210.0,0.00018493,5]
[408084048,1773124246279,-210.0,0.00018493,5]
[408084049,1773124246291,-210.0,0.00018493,5]
[408084050,1773124246301,-210.0,0.00018493,5]
[408084051,1773124246313,-210.0,0.00018493,5]
[408084052,1773124246323,-210.0,0.00018493,5]
[408084053,1773124246334,-500.0,0.00018497,2]
[408084054,1773124246344,-500.0,0.00018497,2]
[408084055,1773124246353,-500.0,0.00018497,2]
[408084056,1773124246363,-500.0,0.00018497,2]
[408084057,1773124246372,-500.0,0.00018497,2]
[408084058,1773124246381,-200.0,0.00018497,2]
[408084059,1773124246391,-500.0,0.00018497,2]
[408084060,1773124246400,-565.63411788,0.00018497,2]
[408084061,1773124246410,-151.0,0.00018497,2]
[408084062,1773124246421,-151.0,0.00018497,2]
[408084063,1773124246431,-151.0,0.00018497,2]
[408084064,1773124246442,-289.57214403,0.00018497,2]
[408084065,1773124246452,-743.9,0.00018498,2]
[408084066,1773124246462,-743.9,0.00018498,2]
[408084067,1773124246472,-343.2,0.00018498,2]
[408084068,1773124246481,-82428.51740347,0.00018508,2]
[408084069,1773124248543,-11696.55516747,0.00018508,2]
[408084072,1773124342250,150.0,0.000145,2]
[408084073,1773124557023,432.0,0.000139,5]
[408084078,1773125432018,-250.0,0.00015,2]
[408084079,1773125432028,-50.0,0.00015726,2]
[408084080,1773125432092,-150.0,0.00015726,2]
[408084081,1773125432102,-195.51780687,0.00015781,2]
[408084082,1773125432115,-4.48219313,0.00015781,2]
[408084083,1773125432126,-200.0,0.0001589,2]
[408084084,1773125432137,-256.985297,0.0001615,7]
[408084085,1773125432148,-1860.88,0.00016309,2]
[408084086,1773125432158,-181.11381047,0.00016387,7]
[408084087,1773125432175,-532.82685681,0.00016387,7]
[408084088,1773125432203,-2.84057072,0.00016387,7]
[408084089,1773125432213,-166.66,0.00016395,2]
[408084090,1773125432223,-164.87465773,0.000164,2]
[408084091,1773125432234,-1200.0,0.00016499,2]
[408084092,1773125432244,-2500.0,0.000165,2]
[408084093,1773125432253,-2500.0,0.000165,2]
[408084094,1773125432263,-2500.0,0.000165,2]
[408084095,1773125432277,-1566.41055366,0.000165,2]
[408084096,1773125432287,-352.234,0.000165,2]
[408084097,1773125432297,-166.66,0.00016741,2]
[408084099,1773125432306,-3216.31,0.00016861,2]
[408084102,1773125432317,-300.0,0.00017,2]
[408084104,1773125432327,-504.0,0.00017,2]
[408084106,1773125432337,-660.0,0.00017,7]
[408084108,1773125432347,-166.66,0.00017086,2]
[408084109,1773125432356,-391.0,0.00017149,2]
[408084111,1773125432366,-1294.20631957,0.0001715,2]
[408084114,1773125432376,-523.35473628,0.0001715,2]
[408084115,1773125432385,-2437.5719377,0.0001715,2]
[408084117,1773125432395,-1600.0,0.00017151,2]
[408084120,1773125432406,-1118.11,0.00017151,2]
[408084122,1773125432415,-499.99,0.00017151,2]
[408084123,1773125432425,-150.99,0.00017151,2]
[408084125,1773125432435,-560.02,0.00017151,2]
[408084127,1773125432445,-1029.61,0.0001724,2]
[408084129,1773125432455,-446.34,0.0001724,2]
[408084131,1773125432469,-1000.0,0.00017249,2]
[408084133,1773125432479,-739.67,0.0001725,2]
[408084135,1773125432488,-5929.17,0.0001725,2]
[408084137,1773125432500,-7585.92,0.0001725,2]
[408084139,1773125432510,-9999.99,0.0001725,2]
[408084141,1773125432522,-2111.35,0.0001725,2]
[408084144,1773125432532,-150.99,0.0001725,2]
[408084146,1773125432542,-76114.69555777,0.0001725,2]
[408084148,1773125432554,-7954.50870299,0.0001725,2]
[408084150,1773125432565,-3650.36757386,0.0001725,2]
[408084172,1773125438091,-171.6,0.0001724,2]
[408084174,1773125438102,-777.77918096,0.0001725,2]
[408084175,1773125438208,-1058.806807,0.0001725,2]
[408084176,1773125438272,-1335.68020852,0.0001725,2]
[408084178,1773125440185,-279.89771197,0.0001725,2]
[408084179,1773125440620,-2102.87999999,0.0001725,2]
[408084180,1773125440755,-80640.63425694,0.0001725,2]
[408084181,1773125440766,-3715.38,0.0001725,2]
[408084182,1773125440777,-9999.99,0.0001725,2]
[408084183,1773125440787,-299.99,0.0001725,4]
[408084184,1773125440797,-9999.99,0.0001725,2]
[408084185,1773125440807,-6272.28,0.0001725,2]
[408084186,1773125440818,-6029.74,0.0001725,2]
[408084187,1773125440829,-3428.03,0.0001725,2]
[408084188,1773125440839,-9999.99,0.0001725,2]
[408084189,1773125440849,-29506.61,0.0001725,2]